[Event "Jeux du Barreau 2019"]
[Site "Paris, France"]
[Date "2019.07.10"]
[Round "3.9"]
[White "Mangenot, Valentin"]
[Black "De Vareilles-Sommier, Ferdinand"]
[Result "1-0"]
[TimeControl "15+3"]
[WhiteElo "1405"]
[BlackElo "1399"]

1. d4 {[%clk 00:15:03]} {[%emt 00:00:02]} d5 {[%clk 00:14:33]} {[%emt
00:00:34]} 2. c4 {[%clk 00:15:04]} {[%emt 00:00:02]} dxc4 {[%clk 00:14:25]}
{[%emt 00:00:11]} 3. Nc3 {[%clk 00:15:05]} {[%emt 00:00:03]} Nc6 {[%clk
00:13:54]} {[%emt 00:00:34]} 4. Nf3 {[%clk 00:14:41]} {[%emt 00:00:27]} Bg4
{[%clk 00:13:23]} {[%emt 00:00:34]} 5. d5 {[%clk 00:14:24]} {[%emt 00:00:21]}
Bxf3 {[%clk 00:12:49]} {[%emt 00:00:36]} 6. exf3 {[%clk 00:14:24]} {[%emt
00:00:03]} Nb4 {[%clk 00:12:37]} {[%emt 00:00:16]} 7. Qa4+ {[%clk 00:14:20]}
{[%emt 00:00:06]} c6 {[%clk 00:11:29]} {[%emt 00:01:12]} 8. Qxb4 {[%clk
00:14:17]} {[%emt 00:00:06]} cxd5 {[%clk 00:10:44]} {[%emt 00:00:49]} 9. Qb5+
{[%clk 00:14:17]} {[%emt 00:00:03]} Qd7 {[%clk 00:10:41]} {[%emt 00:00:06]} 10.
Qxd5 {[%clk 00:13:49]} {[%emt 00:00:30]} Qxd5 {[%clk 00:10:23]} {[%emt
00:00:21]} 11. Nxd5 {[%clk 00:13:50]} {[%emt 00:00:02]} Rc8 {[%clk 00:09:42]}
{[%emt 00:00:43]} 12. Be3 {[%clk 00:13:32]} {[%emt 00:00:22]} a6 {[%clk
00:09:20]} {[%emt 00:00:26]} 13. Nb6 {[%clk 00:13:15]} {[%emt 00:00:20]} Rc6
{[%clk 00:07:28]} {[%emt 00:01:54]} 14. Nxc4 {[%clk 00:13:15]} {[%emt
00:00:03]} g6 {[%clk 00:07:00]} {[%emt 00:00:32]} 15. g3 {[%clk 00:12:20]}
{[%emt 00:00:58]} Bg7 {[%clk 00:06:42]} {[%emt 00:00:20]} 16. Rb1 {[%clk
00:11:12]} {[%emt 00:01:11]} Nf6 {[%emt 00:00:16]} 17. b3 {[%clk 00:10:41]}
{[%emt 00:00:35]} b5 {[%clk 00:05:11]} {[%emt 00:01:21]} 18. Nb2 {[%clk
00:10:12]} {[%emt 00:00:31]} Re6 {[%clk 00:04:47]} {[%emt 00:00:27]} 19. Bg2
{[%clk 00:09:34]} {[%emt 00:00:41]} O-O {[%clk 00:04:16]} {[%emt 00:00:34]} 20.
O-O {[%clk 00:09:34]} {[%emt 00:00:03]} Nd5 {[%clk 00:03:47]} {[%emt 00:00:32]}
21. Rfe1 {[%clk 00:09:07]} {[%emt 00:00:30]} Nc3 {[%clk 00:03:11]} {[%emt
00:00:39]} 22. Rbc1 {[%clk 00:08:08]} {[%emt 00:01:03]} Nxa2 {[%clk 00:03:00]}
{[%emt 00:00:15]} 23. Rc2 {[%clk 00:08:10]} Nb4 {[%clk 00:02:42]} {[%emt
00:00:21]} 24. Rce2 {[%clk 00:08:11]} {[%emt 00:00:02]} Nc6 {[%clk 00:02:07]}
{[%emt 00:00:38]} 25. f4 {[%clk 00:08:10]} {[%emt 00:00:03]} Na5 {[%clk
00:02:00]} {[%emt 00:00:11]} 26. b4 {[%clk 00:07:56]} {[%emt 00:00:17]} Nc4
{[%clk 00:01:34]} {[%emt 00:00:29]} 27. Nxc4 {[%clk 00:07:56]} {[%emt
00:00:03]} bxc4 {[%clk 00:01:36]} {[%emt 00:00:01]} 28. Bd5 {[%clk 00:07:57]}
{[%emt 00:00:01]} Rb6 {[%clk 00:01:20]} {[%emt 00:00:20]} 29. Bxc4 {[%clk
00:07:58]} {[%emt 00:00:01]} Rxb4 {[%clk 00:01:20]} {[%emt 00:00:02]} 30. Bxa6
{[%clk 00:08:00]} {[%emt 00:00:02]} Ra8 {[%clk 00:00:43]} {[%emt 00:00:40]} 31.
Bc5 {[%clk 00:07:11]} {[%emt 00:00:52]} Rb3 {[%clk 00:00:07]} {[%emt 00:00:39]}
32. Bc4 {[%clk 00:07:01]} {[%emt 00:00:12]} Rc3 {[%clk 00:00:09]} {[%emt
00:00:02]} 33. Bxf7+ {[%clk 00:05:54]} {[%emt 00:01:09]} Kxf7 {[%clk 00:00:11]}
{[%emt 00:00:02]} 34. Rxe7+ {[%clk 00:05:56]} {[%emt 00:00:02]} Kf8 {[%clk
00:00:09]} {[%emt 00:00:04]} 35. Re8+ {[%clk 00:05:47]} {[%emt 00:00:11]} Kf7
{[%clk 00:00:07]} {[%emt 00:00:04]} 36. R1e7+ {[%clk 00:05:34]} {[%emt
00:00:18]} Kf6 {[%clk 00:00:04]} {[%emt 00:00:05]} 37. Bd4+ {[%clk 00:05:33]}
{[%emt 00:00:05]} Kf5 {[%clk 00:00:04]} {[%emt 00:00:04]} 38. Bxc3 {[%clk
00:04:56]} {[%emt 00:00:40]} 1-0

[Event "Jeux du Barreau 2019"]
[Site "Paris, France"]
[Date "2019.07.10"]
[Round "3.10"]
[White "Lanoe-Campbell, Luca"]
[Black "Danon, Agnes"]
[Result "1-0"]
[TimeControl "15+3"]
[WhiteElo "1379"]
[BlackElo "1199"]

1. e4 {[%clk 00:15:03]} {[%emt 00:00:02]} e5 {[%clk 00:14:55]} {[%emt
00:00:12]} 2. Nf3 {[%clk 00:15:04]} {[%emt 00:00:02]} Nc6 {[%clk 00:14:48]}
{[%emt 00:00:10]} 3. d4 {[%clk 00:15:05]} {[%emt 00:00:01]} Bd6 {[%clk
00:14:42]} {[%emt 00:00:09]} 4. d5 {[%clk 00:14:17]} {[%emt 00:00:51]} Nd4
{[%clk 00:14:26]} {[%emt 00:00:19]} 5. Nxd4 {[%clk 00:14:15]} {[%emt 00:00:04]}
exd4 {[%clk 00:14:24]} {[%emt 00:00:05]} 6. Qxd4 {[%clk 00:14:16]} {[%emt
00:00:02]} Nf6 {[%clk 00:14:16]} {[%emt 00:00:12]} 7. e5 {[%clk 00:14:05]}
{[%emt 00:00:13]} c5 {[%clk 00:14:10]} {[%emt 00:00:09]} 8. Qf4 {[%clk
00:12:48]} {[%emt 00:01:17]} Nh5 {[%clk 00:13:32]} {[%emt 00:00:44]} 9. Qe3
{[%clk 00:09:33]} {[%emt 00:03:17]} Bb8 {[%clk 00:13:21]} {[%emt 00:00:14]} 10.
Be2 {[%clk 00:09:31]} {[%emt 00:00:06]} Qh4 {[%clk 00:12:48]} {[%emt 00:00:37]}
11. g3 {[%clk 00:09:06]} {[%emt 00:00:23]} Qd4 {[%clk 00:12:27]} {[%emt
00:00:27]} 12. Bxh5 {[%clk 00:08:18]} {[%emt 00:00:51]} O-O {[%clk 00:11:39]}
{[%emt 00:00:52]} 13. Qxd4 {[%clk 00:06:48]} {[%emt 00:01:33]} cxd4 {[%clk
00:11:39]} {[%emt 00:00:03]} 14. Bf4 {[%clk 00:06:36]} {[%emt 00:00:14]} Re8
{[%clk 00:11:31]} {[%emt 00:00:12]} 15. d6 {[%clk 00:06:27]} {[%emt 00:00:12]}
Bxd6 {[%clk 00:11:28]} {[%emt 00:00:07]} 16. Nd2 {[%clk 00:06:22]} {[%emt
00:00:07]} Bxe5 {[%clk 00:11:17]} {[%emt 00:00:13]} 17. O-O-O {[%clk 00:06:04]}
{[%emt 00:00:23]} g6 {[%clk 00:10:54]} {[%emt 00:00:26]} 18. Be2 {[%clk
00:05:31]} {[%emt 00:00:36]} d6 {[%clk 00:10:25]} {[%emt 00:00:33]} 19. Bb5
{[%clk 00:05:18]} {[%emt 00:00:15]} Re7 {[%clk 00:10:04]} {[%emt 00:00:24]} 20.
Bxe5 {[%clk 00:04:39]} {[%emt 00:00:42]} Rxe5 {[%clk 00:10:03]} {[%emt
00:00:04]} 21. Bd3 {[%clk 00:04:15]} {[%emt 00:00:27]} Bg4 {[%clk 00:09:39]}
{[%emt 00:00:27]} 22. f3 {[%clk 00:04:05]} {[%emt 00:00:12]} Be6 {[%clk
00:09:15]} {[%emt 00:00:28]} 23. f4 {[%clk 00:03:49]} {[%emt 00:00:20]} Re3
{[%clk 00:08:25]} {[%emt 00:00:53]} 24. a3 {[%clk 00:03:44]} {[%emt 00:00:08]}
Rc8 {[%clk 00:08:02]} {[%emt 00:00:26]} 25. Kb1 {[%clk 00:03:30]} {[%emt
00:00:16]} b5 {[%clk 00:06:27]} {[%emt 00:01:39]} 26. Bxb5 {[%clk 00:03:20]}
{[%emt 00:00:12]} Rc5 {[%clk 00:05:45]} {[%emt 00:00:45]} 27. Bd3 {[%clk
00:03:03]} {[%emt 00:00:20]} a5 {[%clk 00:05:23]} {[%emt 00:00:26]} 28. Rhe1
{[%clk 00:03:01]} {[%emt 00:00:04]} Bg4 {[%clk 00:04:46]} {[%emt 00:00:40]} 29.
Rc1 {[%clk 00:02:29]} {[%emt 00:00:34]} a4 {[%clk 00:04:07]} {[%emt 00:00:43]}
30. Rxe3 {[%clk 00:02:02]} {[%emt 00:00:29]} dxe3 {[%clk 00:04:06]} {[%emt
00:00:04]} 31. Ne4 {[%clk 00:01:56]} {[%emt 00:00:08]} f6 {[%clk 00:01:45]}
{[%emt 00:02:25]} 32. Nxf6+ {[%clk 00:01:54]} {[%emt 00:00:06]} Kg7 {[%clk
00:01:13]} {[%emt 00:00:35]} 33. Nxg4 {[%clk 00:01:54]} {[%emt 00:00:02]} h6
{[%clk 00:00:59]} {[%emt 00:00:17]} 34. Nxe3 {[%clk 00:01:51]} {[%emt
00:00:06]} d5 {[%clk 00:00:50]} {[%emt 00:00:13]} 35. b4 {[%clk 00:01:42]}
{[%emt 00:00:12]} Rc3 {[%clk 00:00:44]} {[%emt 00:00:09]} 36. b5 {[%clk
00:01:34]} {[%emt 00:00:11]} Rxa3 {[%clk 00:00:29]} {[%emt 00:00:18]} 37. Kb2
{[%clk 00:01:14]} {[%emt 00:00:23]} d4 {[%clk 00:00:14]} {[%emt 00:00:17]} 38.
Nd5 {[%clk 00:01:07]} {[%emt 00:00:11]} Rxd3 {[%emt 00:00:07]} 39. cxd3 {[%clk
00:01:08]} {[%emt 00:00:01]} h5 {[%clk 00:00:11]} {[%emt 00:00:05]} 40. b6
{[%clk 00:01:09]} {[%emt 00:00:02]} Kf7 {[%clk 00:00:10]} {[%emt 00:00:04]} 41.
b7 {[%clk 00:01:11]} {[%emt 00:00:01]} Ke6 {[%clk 00:00:09]} {[%emt 00:00:04]}
42. b8=Q {[%clk 00:01:11]} {[%emt 00:00:03]} Kxd5 {[%clk 00:00:09]} {[%emt
00:00:03]} 43. Qb5+ {[%clk 00:01:09]} {[%emt 00:00:05]} Kd6 {[%clk 00:00:07]}
{[%emt 00:00:05]} 44. Rc6+ {[%clk 00:01:10]} {[%emt 00:00:01]} 1-0

[Event "Jeux du Barreau 2019"]
[Site "Paris, France"]
[Date "2019.07.10"]
[Round "4.1"]
[White "Chanel, Virgile"]
[Black "Vandeweeghe, Simon"]
[Result "1-0"]
[TimeControl "15+3"]
[WhiteElo "1991"]
[BlackElo "2036"]

1. e4 {[%clk 00:15:03]} {[%emt 00:00:02]} c5 {[%clk 00:15:05]} {[%emt
00:00:02]} 2. b3 {[%clk 00:15:04]} {[%emt 00:00:02]} Nc6 {[%clk 00:14:37]}
{[%emt 00:00:31]} 3. Bb2 {[%clk 00:15:04]} {[%emt 00:00:02]} d6 {[%clk
00:14:32]} {[%emt 00:00:08]} 4. Nc3 {[%clk 00:15:02]} {[%emt 00:00:04]} Nf6
{[%clk 00:14:33]} {[%emt 00:00:02]} 5. Nge2 {[%clk 00:14:35]} {[%emt 00:00:30]}
e6 {[%clk 00:13:29]} {[%emt 00:01:08]} 6. g3 {[%clk 00:14:25]} {[%emt
00:00:13]} Be7 {[%clk 00:13:28]} {[%emt 00:00:04]} 7. Bg2 {[%clk 00:14:26]}
{[%emt 00:00:02]} O-O {[%clk 00:13:28]} {[%emt 00:00:03]} 8. O-O {[%clk
00:14:26]} {[%emt 00:00:03]} Bd7 {[%clk 00:12:59]} {[%emt 00:00:33]} 9. d3
{[%clk 00:14:21]} {[%emt 00:00:07]} Rc8 {[%clk 00:12:45]} {[%emt 00:00:16]} 10.
f4 {[%clk 00:14:20]} {[%emt 00:00:04]} a6 {[%clk 00:11:35]} {[%emt 00:01:14]}
11. Qd2 {[%clk 00:14:00]} {[%emt 00:00:23]} b5 {[%clk 00:11:32]} {[%emt
00:00:06]} 12. Nd1 {[%clk 00:13:35]} {[%emt 00:00:27]} Qb6 {[%clk 00:10:27]}
{[%emt 00:01:09]} 13. Ne3 {[%clk 00:12:46]} {[%emt 00:00:52]} Nd4 {[%clk
00:08:12]} {[%emt 00:02:18]} 14. c3 {[%clk 00:12:22]} Nxe2+ {[%clk 00:08:08]}
{[%emt 00:00:34]} 15. Qxe2 {[%emt 00:00:27]} Bc6 {[%clk 00:06:24]} {[%emt
00:01:22]} 16. c4 {[%clk 00:12:12]} {[%emt 00:00:14]} Qb7 {[%clk 00:05:09]}
{[%emt 00:01:17]} 17. f5 {[%clk 00:11:29]} {[%emt 00:00:46]} Rce8 {[%clk
00:03:06]} {[%emt 00:02:07]} 18. Ng4 {[%clk 00:10:56]} {[%emt 00:00:36]} e5
{[%clk 00:02:13]} {[%emt 00:00:56]} 19. Ne3 {[%clk 00:10:44]} {[%emt 00:00:14]}
bxc4 {[%clk 00:01:54]} {[%emt 00:00:22]} 20. bxc4 {[%clk 00:10:07]} {[%emt
00:00:41]} Rb8 {[%clk 00:01:55]} {[%emt 00:00:02]} 21. Rab1 {[%clk 00:10:03]}
{[%emt 00:00:07]} Qc7 {[%clk 00:01:45]} {[%emt 00:00:14]} 22. Bc3 {[%clk
00:09:43]} {[%emt 00:00:22]} Rxb1 {[%clk 00:01:45]} {[%emt 00:00:03]} 23. Rxb1
{[%clk 00:09:45]} {[%emt 00:00:01]} Rb8 {[%clk 00:01:47]} 24. Qc2 {[%clk
00:09:34]} {[%emt 00:00:14]} Rxb1+ {[%clk 00:01:48]} {[%emt 00:00:02]} 25. Qxb1
{[%clk 00:09:35]} {[%emt 00:00:01]} Qb7 {[%clk 00:01:49]} {[%emt 00:00:02]} 26.
Qxb7 {[%clk 00:09:18]} {[%emt 00:00:20]} Bxb7 {[%clk 00:01:51]} {[%emt
00:00:01]} 27. Ba5 {[%clk 00:09:19]} {[%emt 00:00:02]} Kf8 {[%clk 00:01:50]}
{[%emt 00:00:04]} 28. Bf3 {[%clk 00:09:17]} {[%emt 00:00:05]} Bc6 {[%clk
00:01:53]} 29. Bd1 {[%clk 00:09:05]} {[%emt 00:00:15]} Ke8 {[%clk 00:01:54]}
{[%emt 00:00:02]} 30. Kf2 {[%clk 00:09:00]} {[%emt 00:00:07]} Bd8 {[%clk
00:01:57]} 31. Bd2 {[%clk 00:08:47]} {[%emt 00:00:16]} Kd7 {[%clk 00:01:58]}
{[%emt 00:00:02]} 32. g4 {[%clk 00:08:41]} {[%emt 00:00:08]} Ne8 {[%clk
00:01:48]} {[%emt 00:00:13]} 33. Kg3 {[%clk 00:08:26]} {[%emt 00:00:18]} a5
{[%clk 00:01:45]} {[%emt 00:00:06]} 34. Nd5 {[%clk 00:08:09]} {[%emt 00:00:20]}
Bxd5 {[%clk 00:01:24]} {[%emt 00:00:25]} 35. exd5 {[%clk 00:08:11]} {[%emt
00:00:01]} Kc8 {[%clk 00:01:22]} {[%emt 00:00:06]} 36. Ba4 {[%clk 00:08:08]}
{[%emt 00:00:06]} Nf6 {[%clk 00:01:21]} {[%emt 00:00:04]} 37. g5 {[%clk
00:07:52]} {[%emt 00:00:18]} Ng8 {[%clk 00:01:12]} {[%emt 00:00:12]} 38. Be8
{[%clk 00:07:05]} {[%emt 00:00:50]} f6 {[%clk 00:00:56]} {[%emt 00:00:18]} 39.
h4 {[%clk 00:06:54]} {[%emt 00:00:14]} Ne7 {[%clk 00:00:56]} {[%emt 00:00:03]}
40. Kg4 {[%clk 00:06:45]} {[%emt 00:00:12]} Bc7 {[%clk 00:00:42]} {[%emt
00:00:17]} 41. h5 fxg5 42. Bxg5 {[%clk 00:06:01]} {[%emt 00:00:24]} Ng8 {[%clk
00:00:29]} {[%emt 00:00:08]} 43. Bf7 {[%clk 00:05:00]} {[%emt 00:01:03]} Nf6+
{[%clk 00:00:20]} {[%emt 00:00:12]} 44. Bxf6 {[%clk 00:05:02]} {[%emt
00:00:01]} gxf6 {[%clk 00:00:22]} {[%emt 00:00:02]} 45. h6 {[%clk 00:05:04]}
Kd8 {[%clk 00:00:24]} {[%emt 00:00:02]} 46. Bg8 {[%clk 00:05:06]} {[%emt
00:00:01]} Ke7 {[%clk 00:00:24]} {[%emt 00:00:03]} 47. Bxh7 {[%emt 00:00:02]}
Kf8 48. Bg6 {[%clk 00:04:54]} {[%emt 00:00:15]} a4 {[%clk 00:00:28]} {[%emt
00:00:02]} 49. Kf3 {[%clk 00:04:42]} {[%emt 00:00:15]} Ba5 {[%clk 00:00:30]}
{[%emt 00:00:01]} 50. Ke2 {[%clk 00:04:25]} {[%emt 00:00:20]} a3 {[%clk
00:00:31]} {[%emt 00:00:02]} 51. Kd1 {[%clk 00:04:17]} {[%emt 00:00:10]} Bc3
{[%clk 00:00:33]} {[%emt 00:00:01]} 52. Kc2 {[%clk 00:04:19]} {[%emt 00:00:02]}
Bb2 {[%clk 00:00:35]} {[%emt 00:00:01]} 53. Kb3 {[%clk 00:04:20]} {[%emt
00:00:02]} Bc1 {[%clk 00:00:37]} {[%emt 00:00:01]} 54. h7 {[%clk 00:04:22]} Kg7
{[%clk 00:00:34]} {[%emt 00:00:04]} 55. Ka4 {[%clk 00:04:22]} {[%emt 00:00:05]}
e4 {[%clk 00:00:11]} {[%emt 00:00:27]} 56. dxe4 {[%clk 00:04:20]} {[%emt
00:00:05]} Bb2 {[%clk 00:00:12]} {[%emt 00:00:02]} 57. Kb5 {[%clk 00:04:16]}
Be5 {[%clk 00:00:12]} {[%emt 00:00:10]} 58. Kc6 {[%clk 00:04:18]} Bf4 {[%clk
00:00:14]} {[%emt 00:00:03]} 59. Kd7 {[%clk 00:04:15]} Be5 {[%clk 00:00:14]} 60.
Ke6 {[%clk 00:04:15]} Bf4 {[%clk 00:00:14]} 61. h8=Q+ {[%clk 00:04:15]} Kxh8
{[%clk 00:00:14]} 62. Kxf6 {[%clk 00:04:15]} Be5+ {[%clk 00:00:14]} 63. Kf7
{[%clk 00:04:15]} Bf4 {[%clk 00:00:14]} 64. f6 {[%clk 00:04:15]} Bh6 {[%clk
00:00:14]} 65. Ke7 {[%clk 00:04:15]} Kg8 {[%clk 00:00:14]} 66. Kxd6 {[%clk
00:04:15]} 1-0

[Event "Jeux du Barreau 2019"]
[Site "Paris, France"]
[Date "2019.07.10"]
[Round "4.2"]
[White "Mungunkhuu, Mijgee"]
[Black "Clair, Michael"]
[Result "1-0"]
[TimeControl "15+3"]
[WhiteElo "2219"]
[BlackElo "1726"]

1. c4 {[%clk 00:15:03]} {[%emt 00:00:03]} e5 {[%clk 00:14:24]} {[%emt
00:00:42]} 2. Nc3 {[%clk 00:15:04]} {[%emt 00:00:02]} Nc6 {[%clk 00:14:10]}
{[%emt 00:00:18]} 3. g3 {[%clk 00:15:05]} {[%emt 00:00:02]} g6 {[%clk
00:14:02]} {[%emt 00:00:11]} 4. Bg2 {[%clk 00:15:06]} {[%emt 00:00:02]} Bg7
{[%clk 00:13:56]} {[%emt 00:00:09]} 5. Nf3 {[%clk 00:15:07]} {[%emt 00:00:02]}
d6 {[%clk 00:13:31]} {[%emt 00:00:27]} 6. d3 {[%clk 00:15:08]} {[%emt
00:00:02]} f5 {[%clk 00:13:27]} {[%emt 00:00:08]} 7. Rb1 {[%clk 00:15:08]}
{[%emt 00:00:03]} a5 {[%clk 00:13:21]} {[%emt 00:00:09]} 8. O-O {[%clk
00:15:06]} {[%emt 00:00:05]} Nf6 {[%clk 00:13:21]} {[%emt 00:00:02]} 9. Bg5
{[%clk 00:15:07]} {[%emt 00:00:02]} h6 {[%clk 00:13:04]} {[%emt 00:00:20]} 10.
Bxf6 {[%clk 00:15:08]} {[%emt 00:00:02]} Qxf6 {[%clk 00:12:46]} {[%emt
00:00:22]} 11. a3 {[%clk 00:15:06]} {[%emt 00:00:05]} O-O {[%clk 00:12:17]}
{[%emt 00:00:31]} 12. Nd5 {[%clk 00:14:59]} {[%emt 00:00:10]} Qd8 {[%clk
00:12:19]} {[%emt 00:00:01]} 13. b4 {[%clk 00:15:00]} {[%emt 00:00:02]} axb4
{[%clk 00:12:06]} {[%emt 00:00:16]} 14. axb4 {[%clk 00:15:02]} {[%emt
00:00:02]} Kh7 {[%clk 00:11:30]} {[%emt 00:00:38]} 15. b5 {[%clk 00:15:02]}
{[%emt 00:00:03]} Ne7 {[%clk 00:11:31]} {[%emt 00:00:02]} 16. Qb3 {[%clk
00:14:57]} {[%emt 00:00:09]} Be6 {[%clk 00:10:58]} {[%emt 00:00:35]} 17. Rfc1
{[%clk 00:14:46]} {[%emt 00:00:15]} Qd7 {[%clk 00:10:13]} {[%emt 00:00:48]} 18.
Nd2 {[%clk 00:14:39]} {[%emt 00:00:09]} Rab8 {[%clk 00:09:01]} {[%emt
00:01:15]} 19. Qc2 {[%clk 00:13:41]} {[%emt 00:01:03]} Rfc8 {[%clk 00:08:11]}
{[%emt 00:00:52]} 20. Qa4 {[%clk 00:13:34]} {[%emt 00:00:10]} Ra8 {[%clk
00:07:45]} {[%emt 00:00:30]} 21. Qb3 {[%emt 00:00:05]} Rab8 22. Qa4 {[%clk
00:13:07]} {[%emt 00:00:27]} Ra8 {[%clk 00:07:50]} 23. Qb4 {[%clk 00:13:09]}
{[%emt 00:00:01]} h5 {[%clk 00:06:12]} {[%emt 00:01:41]} 24. Nxe7 {[%clk
00:13:00]} {[%emt 00:00:11]} Qxe7 {[%clk 00:05:54]} {[%emt 00:00:21]} 25. Bxb7
{[%clk 00:13:01]} {[%emt 00:00:03]} h4 {[%clk 00:05:31]} {[%emt 00:00:26]} 26.
Rc2 {[%clk 00:11:56]} {[%emt 00:01:09]} f4 {[%clk 00:03:48]} {[%emt 00:01:45]}
27. Bf3 {[%clk 00:11:32]} {[%emt 00:00:27]} hxg3 {[%clk 00:03:08]} {[%emt
00:00:44]} 28. hxg3 {[%clk 00:11:29]} {[%emt 00:00:05]} fxg3 {[%clk 00:02:42]}
{[%emt 00:00:30]} 29. fxg3 {[%clk 00:11:31]} {[%emt 00:00:01]} Bh6 {[%clk
00:02:00]} {[%emt 00:00:45]} 30. Kg2 {[%clk 00:11:25]} {[%emt 00:00:08]} Kg7
{[%clk 00:01:27]} {[%emt 00:00:35]} 31. b6 {[%clk 00:11:24]} {[%emt 00:00:06]}
cxb6 {[%clk 00:01:15]} {[%emt 00:00:16]} 32. Ne4 {[%clk 00:11:10]} {[%emt
00:00:16]} Be3 {[%clk 00:00:42]} {[%emt 00:00:36]} 33. Qxd6 {[%clk 00:10:53]}
{[%emt 00:00:19]} Ra7 {[%clk 00:00:18]} {[%emt 00:00:28]} 34. Qxe5+ {[%clk
00:10:48]} {[%emt 00:00:08]} 1-0

[Event "Jeux du Barreau 2019"]
[Site "Paris, France"]
[Date "2019.07.10"]
[Round "4.3"]
[White "Aflalo, Sophie"]
[Black "Abulius, Thomas"]
[Result "1-0"]
[TimeControl "15+3"]
[WhiteElo "2094"]
[BlackElo "1390"]

1. Nf3 {[%clk 00:15:00]} {[%emt 00:00:06]} Nf6 {[%clk 00:15:01]} {[%emt
00:00:06]} 2. c4 {[%clk 00:15:00]} {[%emt 00:00:02]} g6 {[%clk 00:15:02]}
{[%emt 00:00:02]} 3. Nc3 {[%clk 00:14:52]} {[%emt 00:00:11]} Bg7 {[%clk
00:14:53]} {[%emt 00:00:13]} 4. d3 {[%clk 00:14:51]} {[%emt 00:00:05]} d5
{[%clk 00:14:52]} {[%emt 00:00:03]} 5. cxd5 {[%clk 00:14:38]} {[%emt 00:00:15]}
Nxd5 {[%clk 00:14:53]} {[%emt 00:00:02]} 6. Qc2 {[%clk 00:14:25]} {[%emt
00:00:16]} O-O {[%clk 00:14:38]} {[%emt 00:00:18]} 7. a3 {[%clk 00:14:20]}
{[%emt 00:00:10]} c6 {[%clk 00:14:03]} {[%emt 00:00:37]} 8. e4 {[%clk
00:14:13]} {[%emt 00:00:10]} Nc7 {[%clk 00:13:49]} {[%emt 00:00:17]} 9. Be3
{[%clk 00:13:48]} {[%emt 00:00:27]} Nd7 {[%clk 00:13:42]} {[%emt 00:00:10]} 10.
d4 {[%clk 00:13:46]} {[%emt 00:00:05]} e5 {[%clk 00:13:12]} {[%emt 00:00:34]}
11. Rd1 {[%clk 00:13:29]} {[%emt 00:00:18]} Qe7 {[%clk 00:12:50]} {[%emt
00:00:27]} 12. Bc4 {[%clk 00:13:21]} {[%emt 00:00:11]} h6 {[%clk 00:12:11]}
{[%emt 00:00:42]} 13. O-O {[%clk 00:13:16]} {[%emt 00:00:08]} Ne6 {[%clk
00:12:01]} {[%emt 00:00:13]} 14. d5 {[%clk 00:12:57]} {[%emt 00:00:22]} cxd5
{[%clk 00:11:54]} {[%emt 00:00:09]} 15. exd5 {[%clk 00:12:59]} {[%emt
00:00:02]} Nf4 {[%clk 00:10:52]} {[%emt 00:01:05]} 16. d6 {[%clk 00:12:58]}
{[%emt 00:00:04]} Qd8 {[%clk 00:10:22]} {[%emt 00:00:33]} 17. Bxf4 {[%clk
00:10:28]} {[%emt 00:02:34]} exf4 {[%clk 00:10:23]} {[%emt 00:00:02]} 18. Qxg6
{[%clk 00:10:28]} {[%emt 00:00:04]} Qf6 {[%clk 00:09:59]} {[%emt 00:00:26]} 19.
Qh5 {[%clk 00:09:48]} {[%emt 00:00:43]} Qg6 {[%clk 00:09:37]} {[%emt 00:00:27]}
20. Qxg6 {[%emt 00:00:11]} 1-0